fUST/lending_fUST_20250713
["ID","MTS","AMOUNT","RATE_DAILY","PERIOD"]
[371743233,1752412255305,-957.33,0.00018904,2]
[371743234,1752412255315,-460.0,0.00018904,2]
[371743235,1752412255324,-2411.81,0.00018904,2]
[371743236,1752412255334,-460.0,0.00018904,2]
[371743237,1752412255345,-588.65,0.00018904,2]
[371743238,1752412255355,-460.0,0.00018904,2]
[371743239,1752412255364,-460.0,0.00018904,2]
[371743240,1752412255374,-2270.15,0.00018904,2]
[371743241,1752412255384,-460.0,0.00018904,2]
[371743242,1752412255394,-642.75,0.00018904,2]
[371743243,1752412255404,-460.0,0.00018904,2]
[371743244,1752412255414,-2336.55255679,0.00018964,2]
[371743245,1752412255423,-300.0,0.00019,7]
[371743246,1752412255433,-500.0,0.00019068,2]
[371743247,1752412255443,-391.41193108,0.00019072,2]
[371743248,1752412255453,-2594.95335664,0.00019078,2]
[371743249,1752412255463,-460.0,0.00019085,2]
[371743250,1752412255472,-460.0,0.00019178,2]
[371743251,1752412255481,-151.0,0.00019178,2]
[371743252,1752412255491,-460.0,0.00019178,2]
[371743253,1752412255500,-460.0,0.00019178,2]
[371743254,1752412255509,-480.06,0.00019178,2]
[371743255,1752412255519,-460.0,0.00019178,2]
[371743256,1752412255529,-460.0,0.00019178,2]
[371743257,1752412255541,-521.93,0.00019178,2]
[371743258,1752412255630,-460.0,0.00019178,2]
[371743259,1752412255641,-546.38,0.00019178,2]
[371743260,1752412255651,-215.030696,0.00019178,2]
[371743261,1752412255662,-215.030696,0.00019178,2]
[371743262,1752412255672,-460.0,0.00019178,2]
[371743263,1752412255683,-460.0,0.00019178,2]
[371743264,1752412255694,-460.0,0.00019178,2]
[371743265,1752412255704,-460.0,0.00019178,2]
[371743266,1752412255715,-460.0,0.00019178,2]
[371743267,1752412255724,-460.0,0.00019178,2]
[371743268,1752412255734,-460.0,0.00019178,2]
[371743269,1752412255743,-1097.75,0.00019178,2]
[371743270,1752412255753,-460.0,0.00019178,2]
[371743271,1752412255762,-460.0,0.00019178,2]
[371743272,1752412255772,-1912.71,0.00019178,2]
[371743273,1752412255781,-2434.91,0.00019178,2]
[371743274,1752412255791,-461.02,0.00019178,2]
[371743275,1752412255800,-460.0,0.00019178,2]
[371743276,1752412255809,-460.0,0.00019178,2]
[371743277,1752412255819,-507.11,0.00019178,2]
[371743278,1752412255829,-460.0,0.00019178,2]
[371743279,1752412255842,-600.71,0.00019178,2]
[371743280,1752412255852,-1857.93,0.00019178,2]
[371743281,1752412255862,-460.0,0.00019178,2]
[371743282,1752412255872,-1161.66,0.00019178,2]
[371743283,1752412255882,-156.31843284,0.00019178,2]
[371743284,1752412255892,-1318.75,0.00019178,2]
[371743285,1752412255902,-625.22,0.00019178,2]
[371743286,1752412255912,-584.52,0.00019178,2]
[371743287,1752412255921,-658.56,0.00019178,2]
[371743288,1752412255931,-460.0,0.00019178,2]
[371743289,1752412255940,-460.0,0.00019178,2]
[371743290,1752412255950,-460.0,0.00019178,2]
[371743291,1752412255961,-526.59,0.00019178,2]
[371743292,1752412255970,-798.12,0.00019178,2]
[371743293,1752412255979,-733.1,0.00019178,2]
[371743294,1752412255989,-257.35,0.00019178,2]
[371743295,1752412255998,-460.0,0.00019178,2]
[371743296,1752412256008,-460.0,0.00019178,2]
[371743297,1752412256017,-913.51,0.00019178,2]
[371743298,1752412256026,-957.33,0.00019178,2]
[371743299,1752412256036,-460.0,0.00019178,2]
[371743300,1752412256045,-2411.81,0.00019178,2]
[371743301,1752412256055,-460.0,0.00019178,2]
[371743302,1752412256064,-588.65,0.00019178,2]
[371743303,1752412256073,-460.0,0.00019178,2]
[371743304,1752412256083,-525.32257468,0.00019178,2]
[371743305,1752412256093,-2270.15,0.00019178,2]
[371743306,1752412256103,-642.75,0.00019178,2]
[371743307,1752412256113,-460.0,0.00019178,2]
[371743308,1752412256122,-198.38958192,0.00019178,2]
[371743309,1752412256132,-272.86,0.00019178,2]
[371743310,1752412256141,-151.0,0.00019178,2]
[371743311,1752412256150,-151.0,0.00019178,2]
[371743312,1752412256159,-151.0,0.00019178,2]
[371743313,1752412256170,-216.325936,0.00019178,2]
[371743314,1752412256179,-372.756912,0.00019178,2]
[371743315,1752412256191,-666.0,0.00019178,2]
[371743316,1752412256201,-769.72,0.000192,2]
[371743317,1752412256210,-2385.35,0.000192,2]
[371743318,1752412256219,-2803.34,0.000192,2]
[371743319,1752412256229,-1000.0,0.00019322,2]
[371743320,1752412256239,-289.935429,0.00019329,2]
[371743321,1752412256248,-289.935429,0.00019329,2]
[371743322,1752412256257,-238.845428,0.00019329,2]
[371743323,1752412256267,-238.845428,0.00019329,2]
[371743324,1752412256277,-151.0,0.00019329,2]
[371743325,1752412256286,-79483.09316209,0.00019329,2]
[371743326,1752412256296,-890.37013331,0.0001938,2]
[371743327,1752412256305,-391.41193108,0.00019383,2]
[371743328,1752412256314,-460.0,0.00019452,2]
[371743329,1752412256324,-460.0,0.00019452,2]
[371743330,1752412256333,-460.0,0.00019452,2]
[371743331,1752412256343,-480.06,0.00019452,2]
[371743332,1752412256353,-460.0,0.00019452,2]
[371743333,1752412256363,-460.0,0.00019452,2]
[371743334,1752412256372,-521.93,0.00019452,2]
[371743335,1752412256381,-460.0,0.00019452,2]
[371743336,1752412256390,-546.38,0.00019452,2]
[371743337,1752412256400,-294.165135,0.00019452,2]
[371743338,1752412256409,-294.165135,0.00019452,2]
[371743339,1752412256418,-460.0,0.00019452,2]
[371743340,1752412256427,-460.0,0.00019452,2]
[371743341,1752412256437,-460.0,0.00019452,2]
[371743342,1752412256446,-460.0,0.00019452,2]
[371743343,1752412256455,-460.0,0.00019452,2]
[371743344,1752412256465,-460.0,0.00019452,2]
[371743345,1752412256474,-460.0,0.00019452,2]
[371743346,1752412256484,-1097.75,0.00019452,2]
[371743347,1752412256493,-460.0,0.00019452,2]
[371743348,1752412256503,-460.0,0.00019452,2]
[371743349,1752412256512,-1912.71,0.00019452,2]
[371743350,1752412256523,-2434.91,0.00019452,2]
[371743351,1752412256535,-461.02,0.00019452,2]
[371743352,1752412256544,-460.0,0.00019452,2]
[371743353,1752412256556,-460.0,0.00019452,2]
[371743354,1752412256567,-507.11,0.00019452,2]
[371743355,1752412256576,-460.0,0.00019452,2]
[371743356,1752412256585,-600.71,0.00019452,2]
[371743357,1752412256594,-1857.93,0.00019452,2]
[371743358,1752412256604,-460.0,0.00019452,2]
[371743359,1752412256614,-1161.66,0.00019452,2]
[371743360,1752412256623,-1318.75,0.00019452,2]
[371743361,1752412256632,-625.22,0.00019452,2]
[371743362,1752412256642,-584.52,0.00019452,2]
[371743363,1752412256651,-658.56,0.00019452,2]
[371743364,1752412256660,-460.0,0.00019452,2]
[371743365,1752412256670,-460.0,0.00019452,2]
[371743366,1752412256680,-460.0,0.00019452,2]
[371743367,1752412256690,-526.59,0.00019452,2]
[371743368,1752412256699,-798.12,0.00019452,2]
[371743369,1752412256709,-733.1,0.00019452,2]
[371743370,1752412256718,-460.0,0.00019452,2]
[371743371,1752412256728,-460.0,0.00019452,2]
[371743372,1752412256737,-913.51,0.00019452,2]
[371743373,1752412256747,-957.33,0.00019452,2]
[371743374,1752412256756,-2411.81,0.00019452,2]
[371743375,1752412256766,-460.0,0.00019452,2]
[371743376,1752412256775,-588.65,0.00019452,2]
[371743377,1752412256785,-460.0,0.00019452,2]
[371743378,1752412256794,-2270.15,0.00019452,2]
[371743379,1752412256804,-642.75,0.00019452,2]
[371743380,1752412256813,-460.0,0.00019452,2]
[371743381,1752412256822,-587.0,0.00019619,2]
[371743382,1752412256832,-560.0,0.00019633,2]
[371743383,1752412256841,-391.41193108,0.00019693,2]
[371743384,1752412256852,-151.0,0.00019726,2]
[371743385,1752412256862,-460.0,0.00019726,2]
[371743386,1752412256872,-460.0,0.00019726,2]
[371743387,1752412256881,-460.0,0.00019726,2]
[371743388,1752412256891,-480.06,0.00019726,2]
[371743389,1752412256900,-212.92219118,0.00019726,2]
[371743390,1752412256910,-460.0,0.00019726,2]
[371743391,1752412256919,-521.93,0.00019726,2]
[371743392,1752412256929,-408.03,0.00019726,2]
[371743393,1752412256938,-546.38,0.00019726,2]
[371743394,1752412256948,-215.030696,0.00019726,2]
[371743395,1752412256958,-215.030696,0.00019726,2]
[371743396,1752412256968,-460.0,0.00019726,2]
[371743397,1752412256978,-460.0,0.00019726,2]
[371743398,1752412256987,-460.0,0.00019726,2]
[371743399,1752412256996,-460.0,0.00019726,2]
[371743400,1752412257005,-460.0,0.00019726,2]
[371743401,1752412257014,-460.0,0.00019726,2]
[371743402,1752412257023,-460.0,0.00019726,2]
[371743403,1752412257033,-1097.75,0.00019726,2]
[371743404,1752412257042,-549.6,0.00019726,2]
[371743405,1752412257051,-460.0,0.00019726,2]
[371743406,1752412257062,-1912.71,0.00019726,2]
[371743407,1752412257072,-2434.91,0.00019726,2]
[371743408,1752412257082,-461.02,0.00019726,2]
[371743409,1752412257091,-460.0,0.00019726,2]
[371743410,1752412257102,-460.0,0.00019726,2]
[371743411,1752412257112,-507.11,0.00019726,2]
[371743412,1752412257121,-460.0,0.00019726,2]
[371743413,1752412257131,-600.71,0.00019726,2]
[371743414,1752412257140,-1857.93,0.00019726,2]
[371743415,1752412257150,-460.0,0.00019726,2]
[371743416,1752412257236,-1161.66,0.00019726,2]
[371743417,1752412257246,-1318.75,0.00019726,2]
[371743418,1752412257255,-625.22,0.00019726,2]
[371743419,1752412257265,-584.52,0.00019726,2]
[371743420,1752412257275,-658.56,0.00019726,2]
[371743421,1752412257284,-460.0,0.00019726,2]
[371743422,1752412257294,-460.0,0.00019726,2]
[371743423,1752412257304,-460.0,0.00019726,2]
[371743424,1752412257314,-526.59,0.00019726,2]
[371743425,1752412257324,-798.12,0.00019726,2]
[371743426,1752412257334,-733.1,0.00019726,2]
[371743427,1752412257343,-460.0,0.00019726,2]
[371743428,1752412257354,-913.51,0.00019726,2]
[371743429,1752412257363,-957.33,0.00019726,2]
[371743430,1752412257373,-2411.81,0.00019726,2]
[371743431,1752412257383,-460.0,0.00019726,2]
[371743432,1752412257393,-588.65,0.00019726,2]
[371743433,1752412257403,-460.0,0.00019726,2]
[371743434,1752412257412,-2270.15,0.00019726,2]
[371743435,1752412257421,-642.75,0.00019726,2]
[371743436,1752412257431,-460.0,0.00019726,2]
[371743437,1752412257440,-500.0,0.0001987,2]
[371743438,1752412257450,-151.0,0.0002,2]
[371743439,1752412257461,-20370.91500709,0.0002,2]
[371743440,1752412257471,-460.0,0.0002,2]
[371743441,1752412257481,-151.0,0.0002,2]
[371743442,1752412257491,-460.0,0.0002,2]
[371743443,1752412257502,-460.0,0.0002,2]
[371743444,1752412257512,-480.06,0.0002,2]
[371743445,1752412257524,-460.0,0.0002,2]
[371743446,1752412257535,-521.93,0.0002,2]
[371743447,1752412257546,-546.38,0.0002,2]
[371743448,1752412257555,-460.0,0.0002,2]
[371743449,1752412257566,-460.0,0.0002,2]
[371743450,1752412257575,-460.0,0.0002,2]
[371743451,1752412257585,-460.0,0.0002,2]
[371743452,1752412257595,-460.0,0.0002,2]
[371743453,1752412257605,-460.0,0.0002,2]
[371743454,1752412257616,-460.0,0.0002,2]
[371743455,1752412257625,-1097.75,0.0002,2]
[371743456,1752412257635,-1912.71,0.0002,2]
[371743457,1752412257644,-460.0,0.0002,2]
[371743458,1752412257654,-2434.91,0.0002,2]
[371743459,1752412257663,-461.02,0.0002,2]
[371743460,1752412257673,-460.0,0.0002,2]
[371743461,1752412257682,-460.0,0.0002,2]
[371743462,1752412257691,-507.11,0.0002,2]
[371743463,1752412257701,-460.0,0.0002,2]
[371743464,1752412257711,-1857.93,0.0002,2]
[371743465,1752412257721,-600.71,0.0002,2]
[371743466,1752412257731,-460.0,0.0002,2]
[371743467,1752412257740,-1161.66,0.0002,2]
[371743468,1752412257750,-1318.75,0.0002,2]
[371743469,1752412257760,-625.22,0.0002,2]
[371743470,1752412257772,-584.52,0.0002,2]
[371743471,1752412257782,-658.56,0.0002,2]
[371743472,1752412257792,-460.0,0.0002,2]
[371743473,1752412257801,-432.39226932,0.0002,2]
[371743474,1752412257811,-460.0,0.0002,2]
[371743475,1752412257820,-526.59,0.0002,2]
[371743476,1752412257829,-798.12,0.0002,2]
[371743477,1752412257839,-733.1,0.0002,2]
[371743478,1752412257850,-460.0,0.0002,2]
[371743479,1752412257859,-913.51,0.0002,2]
[371743480,1752412257868,-957.33,0.0002,2]
[371743481,1752412257878,-2411.81,0.0002,2]
[371743482,1752412257887,-244.26,0.0002,2]
[371743483,1752412257896,-1769.22730103,0.0002,4]
[371743484,1752412257906,-588.65,0.0002,2]
[371743485,1752412257915,-460.0,0.0002,2]
[371743486,1752412257925,-2270.15,0.0002,2]
[371743487,1752412257934,-642.75,0.0002,2]
[371743488,1752412257944,-460.0,0.0002,2]
[371743489,1752412257954,-391.41193108,0.00020003,2]
[371743490,1752412257971,-180.0,0.00020181,2]
[371743491,1752412257989,-550.616203,0.00020187,2]
[371743492,1752412258003,-273.60939396,0.00020273,2]
[371743493,1752412258019,-460.0,0.00020273,2]
[371743494,1752412258035,-460.0,0.00020273,2]
[371743495,1752412258050,-480.06,0.00020273,2]
[371743496,1752412258067,-460.0,0.00020273,2]
[371743497,1752412258082,-521.93,0.00020273,2]
[371743498,1752412258098,-546.38,0.00020273,2]
[371743499,1752412258115,-460.0,0.00020273,2]
[371743500,1752412258129,-460.0,0.00020273,2]
[371743501,1752412258142,-460.0,0.00020273,2]
[371743502,1752412258155,-460.0,0.00020273,2]
[371743503,1752412258172,-460.0,0.00020273,2]
[371743504,1752412258188,-333.72,0.00020273,2]
[371743505,1752412258205,-460.0,0.00020273,2]
[371743506,1752412258219,-1097.75,0.00020273,2]
[371743507,1752412258231,-1912.71,0.00020273,2]
[371743508,1752412258247,-460.0,0.00020273,2]
[371743509,1752412258262,-2434.91,0.00020273,2]
[371743510,1752412258275,-461.02,0.00020273,2]
[371743511,1752412258290,-460.0,0.00020273,2]
[371743512,1752412258302,-460.0,0.00020273,2]
[371743513,1752412258315,-507.11,0.00020273,2]
[371743514,1752412258329,-460.0,0.00020273,2]
[371743515,1752412258343,-1857.93,0.00020273,2]
[371743516,1752412258357,-600.71,0.00020273,2]
[371743517,1752412258370,-460.0,0.00020273,2]
[371743518,1752412258383,-1161.66,0.00020273,2]
[371743519,1752412258396,-1318.75,0.00020273,2]
[371743520,1752412258409,-625.22,0.00020273,2]
[371743521,1752412258424,-584.52,0.00020273,2]
[371743522,1752412258436,-658.56,0.00020273,2]
[371743523,1752412258450,-460.0,0.00020273,2]
[371743524,1752412258462,-460.0,0.00020273,2]
[371743525,1752412258475,-526.59,0.00020273,2]
[371743526,1752412258488,-798.12,0.00020273,2]
[371743527,1752412258501,-733.1,0.00020273,2]
[371743528,1752412258515,-460.0,0.00020273,2]
[371743529,1752412258527,-913.51,0.00020273,2]
[371743530,1752412258542,-957.33,0.00020273,2]
[371743531,1752412258554,-2411.81,0.00020273,2]
[371743532,1752412258567,-588.65,0.00020273,2]
[371743533,1752412258580,-460.0,0.00020273,2]
[371743534,1752412258593,-2270.15,0.00020273,2]
[371743535,1752412258607,-642.75,0.00020273,2]
[371743536,1752412258622,-391.41193108,0.00020314,3]
[371743537,1752412258635,-460.0,0.00020547,2]
[371743538,1752412258647,-460.0,0.00020547,2]
[371743539,1752412258661,-480.06,0.00020547,2]
[371743540,1752412258673,-289.935429,0.00020547,2]
[371743541,1752412258686,-289.935429,0.00020547,2]
[371743542,1752412258699,-238.845428,0.00020547,2]
[371743543,1752412258712,-238.845428,0.00020547,2]
[371743544,1752412258725,-460.0,0.00020547,2]
[371743545,1752412258737,-151.0,0.00020547,2]
[371743546,1752412258750,-521.93,0.00020547,2]
[371743547,1752412258764,-546.38,0.00020547,2]
[371743548,1752412258777,-483.55,0.00020547,2]
[371743549,1752412258789,-460.0,0.00020547,2]
[371743550,1752412258803,-460.0,0.00020547,2]
[371743551,1752412258816,-460.0,0.00020547,2]
[371743552,1752412258831,-460.0,0.00020547,2]
[371743553,1752412258844,-460.0,0.00020547,2]
[371743554,1752412258857,-1097.75,0.00020547,2]
[371743555,1752412258871,-1912.71,0.00020547,2]
[371743556,1752412258883,-460.0,0.00020547,2]
[371743557,1752412258897,-2434.91,0.00020547,2]
[371743558,1752412258909,-461.02,0.00020547,2]
[371743559,1752412258923,-460.0,0.00020547,2]
[371743560,1752412258933,-507.11,0.00020547,2]
[371743561,1752412258943,-460.0,0.00020547,2]
[371743562,1752412259103,-1857.93,0.00020547,2]
[371743563,1752412259112,-600.71,0.00020547,2]
[371743564,1752412259122,-460.0,0.00020547,2]
[371743565,1752412259132,-1161.66,0.00020547,2]
[371743566,1752412259141,-1318.75,0.00020547,2]
[371743567,1752412259150,-625.22,0.00020547,2]
[371743568,1752412259160,-584.52,0.00020547,2]
[371743569,1752412259169,-658.56,0.00020547,2]
[371743570,1752412259178,-460.0,0.00020547,2]
[371743571,1752412259188,-460.0,0.00020547,2]
[371743572,1752412259197,-526.59,0.00020547,2]
[371743573,1752412259207,-798.12,0.00020547,2]
[371743574,1752412259216,-733.1,0.00020547,2]
[371743575,1752412259225,-460.0,0.00020547,2]
[371743576,1752412259234,-913.51,0.00020547,2]
[371743577,1752412259243,-957.33,0.00020547,2]
[371743578,1752412259253,-2411.81,0.00020547,2]
[371743579,1752412259262,-588.65,0.00020547,2]
[371743580,1752412259272,-460.0,0.00020547,2]
[371743581,1752412259282,-2270.15,0.00020547,2]
[371743582,1752412259292,-642.75,0.00020547,2]
[371743583,1752412259302,-151.0,0.000206,3]
[371743584,1752412259312,-391.41193108,0.00020624,3]
[371743585,1752412259321,-305.058,0.00020701,2]
[371743586,1752412259331,-460.0,0.00020821,2]
[371743587,1752412259341,-460.0,0.00020821,2]
[371743588,1752412259352,-480.06,0.00020821,2]
[371743589,1752412259361,-460.0,0.00020821,2]
[371743590,1752412259371,-521.93,0.00020821,2]
[371743591,1752412259380,-546.38,0.00020821,2]
[371743592,1752412259390,-294.165135,0.00020821,2]
[371743593,1752412259399,-294.165135,0.00020821,2]
[371743594,1752412259410,-460.0,0.00020821,2]
[371743595,1752412259419,-460.0,0.00020821,2]
[371743596,1752412259429,-460.0,0.00020821,2]
[371743597,1752412259438,-217.76980338,0.00020821,2]
[371743598,1752412259448,-287.5,0.00020821,2]
[371743599,1752412259459,-1097.75,0.00020821,2]
[371743600,1752412259468,-1912.71,0.00020821,2]
[371743601,1752412259478,-460.0,0.00020821,2]
[371743602,1752412259488,-2434.91,0.00020821,2]
[371743603,1752412259498,-461.02,0.00020821,2]
[371743604,1752412259509,-495.55339422,0.00020821,2]
[371743605,1752412259521,-507.11,0.00020821,2]
[371743606,1752412259532,-460.0,0.00020821,2]
[371743607,1752412259545,-1857.93,0.00020821,2]
[371743608,1752412259555,-600.71,0.00020821,2]
[371743609,1752412259565,-460.0,0.00020821,2]
[371743610,1752412259578,-1161.66,0.00020821,2]
[371743611,1752412259588,-1318.75,0.00020821,2]
[371743612,1752412259598,-625.22,0.00020821,2]
[371743613,1752412259607,-584.52,0.00020821,2]
[371743614,1752412259618,-658.56,0.00020821,2]
[371743615,1752412259628,-460.0,0.00020821,2]
[371743616,1752412259637,-460.0,0.00020821,2]
[371743617,1752412259647,-526.59,0.00020821,2]
[371743618,1752412259658,-798.12,0.00020821,2]
[371743619,1752412259667,-733.1,0.00020821,2]
[371743620,1752412259677,-460.0,0.00020821,2]
[371743621,1752412259687,-913.51,0.00020821,2]
[371743622,1752412259697,-957.33,0.00020821,2]
[371743623,1752412259707,-2411.81,0.00020821,2]
[371743624,1752412259717,-588.65,0.00020821,2]
[371743625,1752412259726,-460.0,0.00020821,2]
[371743626,1752412259736,-2270.15,0.00020821,2]
[371743627,1752412259746,-642.75,0.00020821,2]
[371743628,1752412259757,-391.41193108,0.00020934,4]
[371743629,1752412259767,-215.030696,0.00020935,2]
[371743630,1752412259776,-215.030696,0.00020935,2]
[371743631,1752412259786,-151.0,0.00021095,2]
[371743632,1752412259796,-519.91,0.00021095,2]
[371743633,1752412259805,-460.0,0.00021095,2]
[371743634,1752412259815,-480.06,0.00021095,2]
[371743635,1752412259824,-460.0,0.00021095,2]
[371743636,1752412259833,-521.93,0.00021095,2]
[371743637,1752412259842,-546.38,0.00021095,2]
[371743638,1752412259853,-460.0,0.00021095,2]
[371743639,1752412259862,-460.0,0.00021095,2]
[371743640,1752412259871,-1097.75,0.00021095,2]
[371743641,1752412259880,-1912.71,0.00021095,2]
[371743642,1752412259890,-460.0,0.00021095,2]
[371743643,1752412259899,-2434.91,0.00021095,2]
[371743644,1752412259908,-461.02,0.00021095,2]
[371743645,1752412259917,-507.11,0.00021095,2]
[371743646,1752412259927,-1857.93,0.00021095,2]
[371743647,1752412259936,-600.71,0.00021095,2]
[371743648,1752412259946,-460.0,0.00021095,2]
[371743649,1752412259956,-1161.66,0.00021095,2]
[371743650,1752412259966,-1318.75,0.00021095,2]
[371743651,1752412259975,-625.22,0.00021095,2]
[371743652,1752412259984,-584.52,0.00021095,2]
[371743653,1752412259994,-658.56,0.00021095,2]
[371743654,1752412260003,-460.0,0.00021095,2]
[371743655,1752412260013,-460.0,0.00021095,2]
[371743656,1752412260023,-526.59,0.00021095,2]
[371743657,1752412260033,-798.12,0.00021095,2]
[371743658,1752412260043,-733.1,0.00021095,2]
[371743659,1752412260053,-460.0,0.00021095,2]
[371743660,1752412260063,-913.51,0.00021095,2]
[371743661,1752412260074,-957.33,0.00021095,2]
[371743662,1752412260084,-2411.81,0.00021095,2]
[371743663,1752412260093,-588.65,0.00021095,2]
[371743664,1752412260104,-460.0,0.00021095,2]
[371743665,1752412260113,-2270.15,0.00021095,2]
[371743666,1752412260123,-642.75,0.00021095,2]
[371743667,1752412260133,-391.41193108,0.00021245,4]
[371743668,1752412260143,-151.0,0.00021369,2]
[371743669,1752412260153,-460.0,0.00021369,2]
[371743670,1752412260163,-480.06,0.00021369,2]
[371743671,1752412260173,-460.0,0.00021369,2]
[371743672,1752412260182,-521.93,0.00021369,2]
[371743673,1752412260192,-546.38,0.00021369,2]
[371743674,1752412260202,-460.0,0.00021369,2]
[371743675,1752412260212,-460.0,0.00021369,2]
[371743676,1752412260222,-1097.75,0.00021369,2]
[371743677,1752412260232,-1912.71,0.00021369,2]
[371743678,1752412260243,-460.0,0.00021369,2]
[371743679,1752412260253,-2434.91,0.00021369,2]
[371743680,1752412260262,-461.02,0.00021369,2]
[371743681,1752412260272,-507.11,0.00021369,2]
[371743682,1752412260282,-1857.93,0.00021369,2]
[371743683,1752412260292,-600.71,0.00021369,2]
[371743684,1752412260303,-460.0,0.00021369,2]
[371743685,1752412260312,-1161.66,0.00021369,2]
[371743686,1752412260322,-1318.75,0.00021369,2]
[371743687,1752412260332,-625.22,0.00021369,2]
[371743688,1752412260342,-584.52,0.00021369,2]
[371743689,1752412260356,-658.56,0.00021369,2]
[371743690,1752412260366,-460.0,0.00021369,2]
[371743691,1752412260377,-460.0,0.00021369,2]
[371743692,1752412260387,-526.59,0.00021369,2]
[371743693,1752412260397,-798.12,0.00021369,2]
[371743694,1752412260407,-733.1,0.00021369,2]
[371743695,1752412260417,-460.0,0.00021369,2]
[371743696,1752412260426,-913.51,0.00021369,2]
[371743697,1752412260435,-957.33,0.00021369,2]
[371743698,1752412260445,-2411.81,0.00021369,2]
[371743699,1752412260454,-588.65,0.00021369,2]
[371743700,1752412260464,-400.85195447,0.00021369,2]
[371743701,1752412260473,-2270.15,0.00021369,2]
[371743702,1752412260483,-642.75,0.00021369,2]
[371743703,1752412260492,-2803.34,0.000214,2]
[371743704,1752412260501,-857.4953208,0.00021425,2]
[371743705,1752412260511,-823.0,0.00021441,2]
[371743706,1752412260521,-769.72,0.000215,2]
[371743707,1752412260532,-2385.35,0.000215,2]
[371743708,1752412260545,-391.41193108,0.00021555,5]
[371743709,1752412260554,-180.25235329,0.00021641,2]
[371743710,1752412260563,-460.0,0.00021643,2]
[371743711,1752412260574,-480.06,0.00021643,2]
[371743712,1752412260584,-460.0,0.00021643,2]
[371743713,1752412260593,-521.93,0.00021643,2]
[371743714,1752412260605,-546.38,0.00021643,2]
[371743715,1752412260616,-460.0,0.00021643,2]
[371743716,1752412260626,-235.08701847,0.00021643,2]
[371743717,1752412260635,-1097.75,0.00021643,2]
[371743718,1752412260644,-1912.71,0.00021643,2]
[371743719,1752412260654,-460.0,0.00021643,2]
[371743720,1752412260664,-2434.91,0.00021643,2]
[371743721,1752412260673,-461.02,0.00021643,2]
[371743722,1752412260683,-507.11,0.00021643,2]
[371743723,1752412260693,-1857.93,0.00021643,2]
[371743724,1752412260702,-600.71,0.00021643,2]
[371743725,1752412260711,-175.83,0.00021643,2]
[371743726,1752412260721,-1161.66,0.00021643,2]
[371743727,1752412260730,-1318.75,0.00021643,2]
[371743728,1752412260741,-625.22,0.00021643,2]
[371743729,1752412260751,-584.52,0.00021643,2]
[371743730,1752412260760,-658.56,0.00021643,2]
[371743731,1752412260770,-460.0,0.00021643,2]
[371743732,1752412260779,-460.0,0.00021643,2]